[Event "*** SCC Grand Prix: Titled Tuesday Blitz"]
[Site "Chess.com"]
[Date "2020.07.14"]
[Round "4"]
[White "tsvet2005"]
[Black "Sueetin"]
[Result "1-0"]
[WhiteElo "2594"]
[BlackElo "2333"]
[TimeControl "180+1"]
[EndTime "10:39:26 PDT"]
[Termination "tsvet2005 won on time"]

1. d4 {[%clk 0:03:00.9]} 1... Nf6 {[%clk 0:02:59.7]} 2. c4 {[%clk 0:03:01.1]}
2... e6 {[%clk 0:02:59.7]} 3. Nc3 {[%clk 0:03:01.5]} 3... Bb4 {[%clk 0:02:59.4]}
4. f3 {[%clk 0:03:01.6]} 4... d6 {[%clk 0:02:54.3]} 5. e4 {[%clk 0:03:00.9]}
5... e5 {[%clk 0:02:53.3]} 6. d5 {[%clk 0:03:00.1]} 6... Bxc3+ {[%clk
0:02:46.3]} 7. bxc3 {[%clk 0:02:59.5]} 7... Nbd7 {[%clk 0:02:35.7]} 8. Bd3
{[%clk 0:02:46.3]} 8... Nc5 {[%clk 0:02:34.3]} 9. Ne2 {[%clk 0:02:46.3]} 9...
Bd7 {[%clk 0:02:29.8]} 10. Ng3 {[%clk 0:02:45.6]} 10... g6 {[%clk 0:02:27.1]}
11. O-O {[%clk 0:02:42.3]} 11... Qe7 {[%clk 0:02:22.9]} 12. f4 {[%clk
0:02:41.2]} 12... exf4 {[%clk 0:02:16.1]} 13. Bxf4 {[%clk 0:02:42.1]} 13... Ng4
{[%clk 0:02:16]} 14. Qd2 {[%clk 0:02:22.7]} 14... h6 {[%clk 0:02:03.4]} 15. h3
{[%clk 0:01:58.1]} 15... Ne5 {[%clk 0:02:01.9]} 16. Be2 {[%clk 0:01:58.4]} 16...
f6 {[%clk 0:01:32]} 17. Be3 {[%clk 0:01:49.9]} 17... h5 {[%clk 0:01:22.3]} 18.
Qc2 {[%clk 0:01:40.3]} 18... O-O-O {[%clk 0:01:04.1]} 19. Nh1 {[%clk 0:01:33.7]}
19... f5 {[%clk 0:00:59.1]} 20. Nf2 {[%clk 0:01:27.7]} 20... Nxe4 {[%clk
0:00:53.1]} 21. Nxe4 {[%clk 0:01:28.6]} 21... fxe4 {[%clk 0:00:53.6]} 22. Qxe4
{[%clk 0:01:27.5]} 22... Bf5 {[%clk 0:00:53.3]} 23. Qd4 {[%clk 0:01:24.1]} 23...
b6 {[%clk 0:00:51]} 24. a4 {[%clk 0:01:22.2]} 24... a5 {[%clk 0:00:50.8]} 25. c5
{[%clk 0:01:17.1]} 25... dxc5 {[%clk 0:00:47.9]} 26. Qd2 {[%clk 0:01:07.9]}
26... Be4 {[%clk 0:00:41.6]} 27. Bg5 {[%clk 0:01:01.5]} 27... Qd6 {[%clk
0:00:16.6]} 28. Bxd8 {[%clk 0:00:59.8]} 28... Rxd8 {[%clk 0:00:17.5]} 29. c4
{[%clk 0:01:00.2]} 29... Bf5 {[%clk 0:00:08.5]} 30. Qf4 {[%clk 0:00:50.1]} 30...
Re8 {[%clk 0:00:06.7]} 31. Rae1 {[%clk 0:00:49.6]} 31... Qd7 {[%clk 0:00:06.6]}
32. Bd1 {[%clk 0:00:40.8]} 32... Nd3 {[%clk 0:00:05.9]} 33. Rxe8+ {[%clk
0:00:41.7]} 33... Qxe8 {[%clk 0:00:06.4]} 34. Qd2 {[%clk 0:00:42.6]} 34... Qe5
{[%clk 0:00:05.9]} 35. Bc2 {[%clk 0:00:38.2]} 35... Qd4+ {[%clk 0:00:05.5]} 36.
Kh1 {[%clk 0:00:38.6]} 36... Qxc4 {[%clk 0:00:05.9]} 37. Rxf5 {[%clk 0:00:39]}
37... gxf5 {[%clk 0:00:04.2]} 38. Qxd3 {[%clk 0:00:39.1]} 38... Qd4 {[%clk
0:00:01.4]} 39. Qxd4 {[%clk 0:00:38.5]} 39... cxd4 {[%clk 0:00:02.3]} 40. Bxf5+
{[%clk 0:00:39.3]} 40... Kd8 {[%clk 0:00:02.9]} 41. Kg1 {[%clk 0:00:38.7]} 41...
Ke7 {[%clk 0:00:03.1]} 42. Kf1 {[%clk 0:00:39.1]} 42... h4 {[%clk 0:00:02.4]}
43. Ke2 {[%clk 0:00:38.6]} 43... Kd6 {[%clk 0:00:02.3]} 44. Be4 {[%clk
0:00:38.7]} 1-0

[Event "*** SCC Grand Prix: Titled Tuesday Blitz"]
[Site "Chess.com"]
[Date "2020.07.14"]
[Round "4"]
[White "BocharovD"]
[Black "Airquake"]
[Result "1-0"]
[WhiteElo "2783"]
[BlackElo "2604"]
[TimeControl "180+1"]
[EndTime "10:39:28 PDT"]
[Termination "BocharovD won on time"]

1. c4 {[%clk 0:03:00.9]} 1... Nf6 {[%clk 0:02:58.2]} 2. g3 {[%clk 0:03:00.2]}
2... e6 {[%clk 0:02:57.5]} 3. Bg2 {[%clk 0:03:00.7]} 3... d5 {[%clk 0:02:58.2]}
4. Nf3 {[%clk 0:03:00.6]} 4... Be7 {[%clk 0:02:58.2]} 5. d4 {[%clk 0:03:00.1]}
5... O-O {[%clk 0:02:58.7]} 6. Nc3 {[%clk 0:03:00.2]} 6... b6 {[%clk 0:02:58.4]}
7. cxd5 {[%clk 0:02:59.4]} 7... exd5 {[%clk 0:02:58.8]} 8. O-O {[%clk
0:02:58.9]} 8... Bb7 {[%clk 0:02:59.1]} 9. b3 {[%clk 0:02:59]} 9... Na6 {[%clk
0:02:58.7]} 10. Bb2 {[%clk 0:02:59.3]} 10... c5 {[%clk 0:02:55]} 11. e3 {[%clk
0:02:58.3]} 11... Nc7 {[%clk 0:02:46.7]} 12. Re1 {[%clk 0:02:54.2]} 12... h6
{[%clk 0:02:41.4]} 13. Rc1 {[%clk 0:02:52]} 13... Ne6 {[%clk 0:02:41.8]} 14. Re2
{[%clk 0:02:50.2]} 14... Ne4 {[%clk 0:02:26.8]} 15. dxc5 {[%clk 0:02:40.5]}
15... Bxc5 {[%clk 0:02:16]} 16. Rec2 {[%clk 0:02:09.9]} 16... Re8 {[%clk
0:01:59.8]} 17. Na4 {[%clk 0:01:57.7]} 17... Bf8 {[%clk 0:01:51.1]} 18. Nd4
{[%clk 0:01:55.8]} 18... N6c5 {[%clk 0:01:44.2]} 19. Nc3 {[%clk 0:01:53.4]}
19... Rc8 {[%clk 0:01:24.5]} 20. Nce2 {[%clk 0:01:43.3]} 20... Ba6 {[%clk
0:01:14.4]} 21. Nf4 {[%clk 0:01:42.7]} 21... Bb7 {[%clk 0:00:43.4]} 22. b4
{[%clk 0:01:32.4]} 22... Na6 {[%clk 0:00:37.5]} 23. Rxc8 {[%clk 0:01:23.2]}
23... Bxc8 {[%clk 0:00:37.5]} 24. Nc6 {[%clk 0:01:22]} 24... Qg5 {[%clk
0:00:28.6]} 25. Qxd5 {[%clk 0:01:13.7]} 25... Qxd5 {[%clk 0:00:15.5]} 26. Nxd5
{[%clk 0:01:14.6]} 26... Bb7 {[%clk 0:00:15.3]} 27. a3 {[%clk 0:01:03]} 27...
Nb8 {[%clk 0:00:11.7]} 28. Nc7 {[%clk 0:00:43.8]} 28... Rc8 {[%clk 0:00:05.9]}
29. Nxb8 {[%clk 0:00:29.8]} 29... Rxb8 {[%clk 0:00:05.5]} 30. Nb5 {[%clk
0:00:29.9]} 30... a6 {[%clk 0:00:04.7]} 31. Nd4 {[%clk 0:00:29.8]} 31... Nf6
{[%clk 0:00:02.9]} 32. Nf5 {[%clk 0:00:28.7]} 32... Bxg2 {[%clk 0:00:02.2]} 33.
Kxg2 {[%clk 0:00:29.6]} 33... Nd7 {[%clk 0:00:02.3]} 34. Rc7 {[%clk 0:00:28.7]}
34... Rd8 {[%clk 0:00:02.4]} 35. Bd4 {[%clk 0:00:27.5]} 35... b5 {[%clk
0:00:02.1]} 36. Ra7 {[%clk 0:00:26.7]} 36... g6 {[%clk 0:00:02.6]} 37. Nh4
{[%clk 0:00:26.8]} 37... Nb8 {[%clk 0:00:03.1]} 38. Nf3 {[%clk 0:00:26]} 38...
Nc6 {[%clk 0:00:02.9]} 39. Rxa6 {[%clk 0:00:26.3]} 39... Nb8 {[%clk 0:00:01.7]}
40. Ra8 {[%clk 0:00:25.7]} 1-0

[Event "*** SCC Grand Prix: Titled Tuesday Blitz"]
[Site "Chess.com"]
[Date "2020.07.14"]
[Round "4"]
[White "TimKett"]
[Black "Nafania1"]
[Result "1-0"]
[WhiteElo "2161"]
[BlackElo "2430"]
[TimeControl "180+1"]
[EndTime "10:39:29 PDT"]
[Termination "TimKett won by resignation"]

1. e4 {[%clk 0:03:00.9]} 1... e6 {[%clk 0:03:00]} 2. d4 {[%clk 0:03:00.4]} 2...
d5 {[%clk 0:03:00]} 3. Nc3 {[%clk 0:03:00.8]} 3... h6 {[%clk 0:02:59.8]} 4. Nf3
{[%clk 0:02:56.4]} 4... Nf6 {[%clk 0:02:59.5]} 5. e5 {[%clk 0:02:55.6]} 5... Ne4
{[%clk 0:02:59.2]} 6. Bd3 {[%clk 0:02:55.3]} 6... Bb4 {[%clk 0:02:59.1]} 7. Bd2
{[%clk 0:02:53.9]} 7... Nxd2 {[%clk 0:02:59.3]} 8. Qxd2 {[%clk 0:02:54]} 8... c5
{[%clk 0:02:59.8]} 9. O-O {[%clk 0:02:44.1]} 9... O-O {[%clk 0:02:38.4]} 10. a3
{[%clk 0:02:37.3]} 10... Bxc3 {[%clk 0:02:33.9]} 11. Qxc3 {[%clk 0:02:32]} 11...
c4 {[%clk 0:02:16.7]} 12. Be2 {[%clk 0:02:31]} 12... Nc6 {[%clk 0:02:13.8]} 13.
Qe3 {[%clk 0:02:28.9]} 13... Qb6 {[%clk 0:02:12.5]} 14. Rab1 {[%clk 0:02:17.3]}
14... Bd7 {[%clk 0:02:06.2]} 15. c3 {[%clk 0:02:11]} 15... Qd8 {[%clk 0:01:59]}
16. Rfe1 {[%clk 0:01:50.7]} 16... b5 {[%clk 0:01:58.4]} 17. Bf1 {[%clk
0:01:47.2]} 17... a5 {[%clk 0:01:58.5]} 18. Ra1 {[%clk 0:01:40.3]} 18... Qe7
{[%clk 0:01:57.9]} 19. h4 {[%clk 0:01:35.3]} 19... b4 {[%clk 0:01:58.1]} 20.
axb4 {[%clk 0:01:35]} 20... axb4 {[%clk 0:01:58.3]} 21. g4 {[%clk 0:01:26.6]}
21... b3 {[%clk 0:01:48.6]} 22. g5 {[%clk 0:01:24.6]} 22... h5 {[%clk
0:01:44.3]} 23. Qf4 {[%clk 0:00:50.9]} 23... Ra2 {[%clk 0:01:22.7]} 24. Rab1
{[%clk 0:00:49]} 24... Qd8 {[%clk 0:01:10.9]} 25. Be2 {[%clk 0:00:39.6]} 25...
Ne7 {[%clk 0:01:10.1]} 26. Nd2 {[%clk 0:00:34]} 26... g6 {[%clk 0:01:09.8]} 27.
Nf1 {[%clk 0:00:33.8]} 27... Nf5 {[%clk 0:01:07.1]} 28. Ng3 {[%clk 0:00:33]}
28... Nxg3 {[%clk 0:01:01.4]} 29. fxg3 {[%clk 0:00:33.1]} 29... Qe7 {[%clk
0:01:00.2]} 30. Rf1 {[%clk 0:00:31.5]} 30... Bc6 {[%clk 0:00:58.7]} 31. g4
{[%clk 0:00:31.2]} 31... hxg4 {[%clk 0:00:58.5]} 32. Bxg4 {[%clk 0:00:31.2]}
32... Kg7 {[%clk 0:00:55.6]} 33. Qf6+ {[%clk 0:00:30]} 33... Qxf6 {[%clk
0:00:55.5]} 34. exf6+ {[%clk 0:00:27.6]} 34... Kg8 {[%clk 0:00:51.1]} 35. h5
{[%clk 0:00:26.2]} 35... Kh7 {[%clk 0:00:46.8]} 36. Rf2 {[%clk 0:00:22.3]} 36...
Be8 {[%clk 0:00:46]} 37. Rh2 {[%clk 0:00:20.4]} 37... Kg8 {[%clk 0:00:38.1]} 38.
hxg6 {[%clk 0:00:18.9]} 38... fxg6 {[%clk 0:00:38.4]} 39. Bxe6+ {[%clk
0:00:18.5]} 39... Bf7 {[%clk 0:00:38.8]} 40. Bxf7+ {[%clk 0:00:17.5]} 40... Kxf7
{[%clk 0:00:36.3]} 41. Re1 {[%clk 0:00:17]} 41... Re8 {[%clk 0:00:27.5]} 42.
Rh7+ {[%clk 0:00:16.4]} 42... Kg8 {[%clk 0:00:27.6]} 43. f7+ {[%clk 0:00:11.3]}
43... Kxh7 {[%clk 0:00:25.1]} 44. fxe8=Q {[%clk 0:00:10.9]} 1-0

[Event "*** SCC Grand Prix: Titled Tuesday Blitz"]
[Site "Chess.com"]
[Date "2020.07.14"]
[Round "4"]
[White "mitrabhaa"]
[Black "eightbyeightchess"]
[Result "1/2-1/2"]
[WhiteElo "2596"]
[BlackElo "2410"]
[TimeControl "180+1"]
[EndTime "10:39:31 PDT"]
[Termination "Game drawn by repetition"]

1. Nf3 {[%clk 0:03:00.9]} 1... d5 {[%clk 0:02:59.9]} 2. d4 {[%clk 0:03:01.8]}
2... Nf6 {[%clk 0:03:00.3]} 3. Bg5 {[%clk 0:03:01.8]} 3... Bf5 {[%clk 0:02:56]}
4. Bxf6 {[%clk 0:02:59]} 4... gxf6 {[%clk 0:02:56.9]} 5. c4 {[%clk 0:02:57.9]}
5... e6 {[%clk 0:02:55.4]} 6. Nc3 {[%clk 0:02:55.2]} 6... dxc4 {[%clk
0:02:47.1]} 7. e4 {[%clk 0:02:54.8]} 7... Bg4 {[%clk 0:02:46.9]} 8. Bxc4 {[%clk
0:02:52.8]} 8... Nc6 {[%clk 0:02:31.9]} 9. d5 {[%clk 0:02:49.2]} 9... exd5
{[%clk 0:02:18.7]} 10. Nxd5 {[%clk 0:02:42.7]} 10... Bb4+ {[%clk 0:02:01.3]} 11.
Nxb4 {[%clk 0:02:40]} 11... Qxd1+ {[%clk 0:02:00.8]} 12. Rxd1 {[%clk 0:02:37.8]}
12... Nxb4 {[%clk 0:02:01.3]} 13. Ke2 {[%clk 0:02:34.8]} 13... Ke7 {[%clk
0:01:54.9]} 14. h3 {[%clk 0:02:29.2]} 14... Be6 {[%clk 0:01:39.5]} 15. Rc1
{[%clk 0:02:21.5]} 15... Bxc4+ {[%clk 0:01:03.6]} 16. Rxc4 {[%clk 0:02:22.4]}
16... Nc6 {[%clk 0:01:04.4]} 17. b4 {[%clk 0:02:20.1]} 17... a6 {[%clk
0:00:59.6]} 18. a4 {[%clk 0:02:18.6]} 18... Rhd8 {[%clk 0:00:59.2]} 19. Rhc1
{[%clk 0:02:17.2]} 19... Rd7 {[%clk 0:00:29.1]} 20. b5 {[%clk 0:02:12.4]} 20...
axb5 {[%clk 0:00:30]} 21. axb5 {[%clk 0:02:10.9]} 21... Ra2+ {[%clk 0:00:30.9]}
22. Kf1 {[%clk 0:02:09.3]} 22... Na7 {[%clk 0:00:30.9]} 23. Rxc7 {[%clk
0:02:06.3]} 23... Nxb5 {[%clk 0:00:30.8]} 24. Rxd7+ {[%clk 0:02:06.2]} 24...
Kxd7 {[%clk 0:00:31.7]} 25. Rb1 {[%clk 0:02:06.7]} 25... Kc6 {[%clk 0:00:24.7]}
26. e5 {[%clk 0:02:04.9]} 26... fxe5 {[%clk 0:00:15.4]} 27. Nxe5+ {[%clk
0:02:00.9]} 27... Kc5 {[%clk 0:00:15.9]} 28. Nd3+ {[%clk 0:01:59.8]} 28... Kc4
{[%clk 0:00:16.4]} 29. Ne5+ {[%clk 0:01:58.1]} 29... Kc5 {[%clk 0:00:16.4]} 30.
Nxf7 {[%clk 0:01:58.2]} 30... Nc3 {[%clk 0:00:16.6]} 31. Rc1 {[%clk 0:01:57.7]}
31... Kd4 {[%clk 0:00:15.4]} 32. Nd6 {[%clk 0:01:57.3]} 32... b5 {[%clk
0:00:13.5]} 33. Rxc3 {[%clk 0:01:50.3]} 33... Kxc3 {[%clk 0:00:13.5]} 34. Nxb5+
{[%clk 0:01:50.4]} 34... Kd3 {[%clk 0:00:13.8]} 35. g4 {[%clk 0:01:50.4]} 35...
Ra5 {[%clk 0:00:11.7]} 36. Nd6 {[%clk 0:01:50.2]} 36... Kd4 {[%clk 0:00:09.4]}
37. Kg2 {[%clk 0:01:49.8]} 37... Kd5 {[%clk 0:00:09.2]} 38. Nf5 {[%clk
0:01:49.6]} 38... Ke4 {[%clk 0:00:07.8]} 39. Kg3 {[%clk 0:01:49.6]} 39... Ra3+
{[%clk 0:00:07.7]} 40. Kg2 {[%clk 0:01:47.4]} 40... Kf4 {[%clk 0:00:07.6]} 41.
Ng3 {[%clk 0:01:46.6]} 41... Rb3 {[%clk 0:00:06.4]} 42. Nh5+ {[%clk 0:01:46.6]}
42... Kg5 {[%clk 0:00:06.4]} 43. f3 {[%clk 0:01:46]} 43... Ra3 {[%clk
0:00:04.9]} 44. Kg3 {[%clk 0:01:45.8]} 44... Kh6 {[%clk 0:00:04.9]} 45. h4
{[%clk 0:01:45.4]} 45... Kg6 {[%clk 0:00:05.5]} 46. Nf4+ {[%clk 0:01:44.4]}
46... Kf6 {[%clk 0:00:06]} 47. Nh3 {[%clk 0:01:40.6]} 47... Ra1 {[%clk
0:00:06.3]} 48. Nf2 {[%clk 0:01:39.3]} 48... Ke5 {[%clk 0:00:06.3]} 49. Nh3
{[%clk 0:01:36.3]} 49... Ra2 {[%clk 0:00:05.9]} 50. Ng5 {[%clk 0:01:36.2]} 50...
Ra7 {[%clk 0:00:04.3]} 51. f4+ {[%clk 0:01:33.8]} 51... Kf6 {[%clk 0:00:03.7]}
52. Ne4+ {[%clk 0:01:32.5]} 52... Ke6 {[%clk 0:00:03.5]} 53. Ng5+ {[%clk
0:01:31.7]} 53... Kd5 {[%clk 0:00:03.9]} 54. h5 {[%clk 0:01:30.1]} 54... h6
{[%clk 0:00:04.4]} 55. Nf3 {[%clk 0:01:30.3]} 55... Ke4 {[%clk 0:00:04.3]} 56.
g5 {[%clk 0:01:28.2]} 56... Ra3 {[%clk 0:00:04.3]} 57. gxh6 {[%clk 0:01:25.9]}
57... Rxf3+ {[%clk 0:00:05.2]} 58. Kg4 {[%clk 0:01:26.8]} 58... Rxf4+ {[%clk
0:00:05.4]} 59. Kg5 {[%clk 0:01:27.4]} 59... Rf8 {[%clk 0:00:03.6]} 60. h7
{[%clk 0:01:26.5]} 60... Rc8 {[%clk 0:00:01.5]} 61. h6 {[%clk 0:01:26.6]} 61...
Ke5 {[%clk 0:00:01.8]} 62. Kg6 {[%clk 0:01:26.9]} 62... Rc6+ {[%clk 0:00:02.1]}
63. Kg7 {[%clk 0:01:26.8]} 63... Rc7+ {[%clk 0:00:02.6]} 64. Kg8 {[%clk
0:01:26.7]} 64... Rc8+ {[%clk 0:00:03]} 65. Kf7 {[%clk 0:01:27]} 65... Rc7+
{[%clk 0:00:03.9]} 66. Kg6 {[%clk 0:01:27.2]} 66... Rc6+ {[%clk 0:00:04.2]} 67.
Kg5 {[%clk 0:01:27.5]} 67... Rc8 {[%clk 0:00:04.1]} 68. Kg6 {[%clk 0:01:27.5]}
68... Rc6+ {[%clk 0:00:03.6]} 1/2-1/2

[Event "*** SCC Grand Prix: Titled Tuesday Blitz"]
[Site "Chess.com"]
[Date "2020.07.14"]
[Round "4"]
[White "Pintacara"]
[Black "GelmanAlexander"]
[Result "0-1"]
[WhiteElo "2324"]
[BlackElo "2578"]
[TimeControl "180+1"]
[EndTime "10:39:31 PDT"]
[Termination "GelmanAlexander won on time"]

1. d4 {[%clk 0:03:00.9]} 1... Nf6 {[%clk 0:02:58.8]} 2. Bg5 {[%clk 0:03:01.1]}
2... c5 {[%clk 0:02:58.5]} 3. d5 {[%clk 0:03:00.8]} 3... g6 {[%clk 0:02:58.3]}
4. Nc3 {[%clk 0:02:59.4]} 4... d6 {[%clk 0:02:55.7]} 5. h4 {[%clk 0:02:59.5]}
5... Nbd7 {[%clk 0:02:52.7]} 6. e4 {[%clk 0:02:57.2]} 6... Bg7 {[%clk
0:02:45.9]} 7. Be2 {[%clk 0:02:44.7]} 7... h6 {[%clk 0:02:39.8]} 8. Be3 {[%clk
0:02:43.7]} 8... b5 {[%clk 0:02:28.4]} 9. Bxb5 {[%clk 0:02:40.9]} 9... Qa5
{[%clk 0:02:18.7]} 10. Bd2 {[%clk 0:02:29.8]} 10... Rb8 {[%clk 0:02:16.3]} 11.
Bc6 {[%clk 0:02:16.6]} 11... O-O {[%clk 0:02:02]} 12. Rb1 {[%clk 0:01:55.7]}
12... Ba6 {[%clk 0:01:46.5]} 13. h5 {[%clk 0:01:41.1]} 13... Ne5 {[%clk
0:01:26.5]} 14. hxg6 {[%clk 0:01:21.9]} 14... fxg6 {[%clk 0:01:27.4]} 15. f4
{[%clk 0:01:21.6]} 15... Nc4 {[%clk 0:01:13.4]} 16. Nf3 {[%clk 0:01:00.1]} 16...
Rxb2 {[%clk 0:00:44.3]} 17. Rxb2 {[%clk 0:00:48.3]} 17... Nxb2 {[%clk
0:00:44.1]} 18. Qc1 {[%clk 0:00:47.9]} 18... Nc4 {[%clk 0:00:42.6]} 19. e5
{[%clk 0:00:34.3]} 19... Ng4 {[%clk 0:00:38.2]} 20. Bd7 {[%clk 0:00:20.5]} 20...
Nge3 {[%clk 0:00:31.2]} 21. Be6+ {[%clk 0:00:19.1]} 21... Kh8 {[%clk 0:00:30]}
22. Kf2 {[%clk 0:00:15]} 22... dxe5 {[%clk 0:00:24.5]} 23. Bxe3 {[%clk 0:00:13]}
23... Qxc3 {[%clk 0:00:23.8]} 24. fxe5 {[%clk 0:00:10.3]} 24... Nxe3 {[%clk
0:00:12.2]} 25. Qxe3 {[%clk 0:00:11.2]} 25... Qxc2+ {[%clk 0:00:12.4]} 26. Kg3
{[%clk 0:00:09.8]} 26... g5 {[%clk 0:00:12.1]} 27. Qxg5 {[%clk 0:00:07.8]} 27...
Qh7 {[%clk 0:00:08.4]} 28. Qh5 {[%clk 0:00:05.4]} 28... Be2 {[%clk 0:00:07.5]}
29. Re1 {[%clk 0:00:03.9]} 29... Bxf3 {[%clk 0:00:06.6]} 30. gxf3 {[%clk
0:00:04.8]} 30... Qd3 {[%clk 0:00:05.9]} 0-1

[Event "*** SCC Grand Prix: Titled Tuesday Blitz"]
[Site "Chess.com"]
[Date "2020.07.14"]
[Round "4"]
[White "tan275"]
[Black "ARMQUEEN"]
[Result "0-1"]
[WhiteElo "2270"]
[BlackElo "2442"]
[TimeControl "180+1"]
[EndTime "10:39:31 PDT"]
[Termination "ARMQUEEN won on time"]

1. d4 {[%clk 0:03:00.9]} 1... Nf6 {[%clk 0:02:59.2]} 2. c4 {[%clk 0:03:00.6]}
2... c5 {[%clk 0:02:59.4]} 3. d5 {[%clk 0:03:00.3]} 3... e6 {[%clk 0:02:59.9]}
4. Nc3 {[%clk 0:02:59.5]} 4... exd5 {[%clk 0:03:00.2]} 5. cxd5 {[%clk
0:03:00.4]} 5... d6 {[%clk 0:03:00.2]} 6. e4 {[%clk 0:03:01]} 6... g6 {[%clk
0:03:00.1]} 7. h3 {[%clk 0:03:01.7]} 7... Bg7 {[%clk 0:02:58.5]} 8. Nf3 {[%clk
0:03:02]} 8... O-O {[%clk 0:02:56.4]} 9. Bd3 {[%clk 0:03:02.5]} 9... Re8 {[%clk
0:02:52.2]} 10. O-O {[%clk 0:03:02]} 10... c4 {[%clk 0:02:49.6]} 11. Bxc4 {[%clk
0:02:56.6]} 11... Nxe4 {[%clk 0:02:48.7]} 12. Nxe4 {[%clk 0:02:55.7]} 12... Rxe4
{[%clk 0:02:49.6]} 13. Qc2 {[%clk 0:02:42.1]} 13... Re8 {[%clk 0:02:43.1]} 14.
Bg5 {[%clk 0:02:40.4]} 14... Qb6 {[%clk 0:02:37.3]} 15. Rfe1 {[%clk 0:02:31.7]}
15... Bd7 {[%clk 0:02:15.5]} 16. Rxe8+ {[%clk 0:02:13.2]} 16... Bxe8 {[%clk
0:02:16.4]} 17. Re1 {[%clk 0:02:11.9]} 17... Nd7 {[%clk 0:02:10.1]} 18. Bb3
{[%clk 0:02:04.1]} 18... Ne5 {[%clk 0:02:00.2]} 19. Nxe5 {[%clk 0:01:49.3]}
19... Bxe5 {[%clk 0:01:57.4]} 20. Be3 {[%clk 0:01:49.5]} 20... Qa5 {[%clk
0:01:54.6]} 21. Bd2 {[%clk 0:01:46.2]} 21... Qb6 {[%clk 0:01:52.5]} 22. Be3
{[%clk 0:01:42.3]} 22... Qd8 {[%clk 0:01:51.9]} 23. Rc1 {[%clk 0:01:12.4]} 23...
Qf6 {[%clk 0:01:38.9]} 24. Qc7 {[%clk 0:01:11.4]} 24... Bxb2 {[%clk 0:01:36.6]}
25. Qxb7 {[%clk 0:01:09]} 25... Rd8 {[%clk 0:01:32.2]} 26. Rc7 {[%clk
0:01:04.7]} 26... Qf5 {[%clk 0:01:13.7]} 27. Bc2 {[%clk 0:00:58.7]} 27... Qe5
{[%clk 0:01:11.3]} 28. Rc8 {[%clk 0:00:56.2]} 28... Rxc8 {[%clk 0:01:05.2]} 29.
Qxc8 {[%clk 0:00:55.7]} 29... Kg7 {[%clk 0:01:05.5]} 30. Qc7 {[%clk 0:00:43.3]}
30... a6 {[%clk 0:01:02.9]} 31. Bd3 {[%clk 0:00:32.9]} 31... Qxd5 {[%clk
0:00:59.5]} 32. Bxa6 {[%clk 0:00:31.3]} 32... Qd1+ {[%clk 0:00:59.3]} 33. Kh2
{[%clk 0:00:29.8]} 33... Be5+ {[%clk 0:00:59.3]} 34. g3 {[%clk 0:00:27.6]} 34...
Qd5 {[%clk 0:00:58.2]} 35. Bc4 {[%clk 0:00:21]} 35... Qf3 {[%clk 0:00:58]} 36.
Qb6 {[%clk 0:00:15.1]} 36... Bc6 {[%clk 0:00:57.1]} 37. Bh6+ {[%clk 0:00:04.1]}
37... Kxh6 {[%clk 0:00:46.5]} 38. Qe3+ {[%clk 0:00:04.2]} 38... Qxe3 {[%clk
0:00:44.1]} 39. fxe3 {[%clk 0:00:05.1]} 39... f5 {[%clk 0:00:44.3]} 40. Bb3
{[%clk 0:00:04.9]} 40... Kg7 {[%clk 0:00:43.6]} 41. a4 {[%clk 0:00:04.2]} 41...
Bc3 {[%clk 0:00:43.4]} 42. Kg1 {[%clk 0:00:04.2]} 42... Be1 {[%clk 0:00:42]} 43.
Kh2 {[%clk 0:00:01.9]} 43... Bd2 {[%clk 0:00:40.5]} 0-1

[Event "*** SCC Grand Prix: Titled Tuesday Blitz"]
[Site "Chess.com"]
[Date "2020.07.14"]
[Round "4"]
[White "aliba25"]
[Black "lucachess49"]
[Result "1-0"]
[WhiteElo "2606"]
[BlackElo "2409"]
[TimeControl "180+1"]
[EndTime "10:39:32 PDT"]
[Termination "aliba25 won by resignation"]

1. d4 {[%clk 0:03:00.9]} 1... Nf6 {[%clk 0:02:59.4]} 2. c4 {[%clk 0:03:00.7]}
2... e6 {[%clk 0:02:59.9]} 3. Nf3 {[%clk 0:03:00.6]} 3... a6 {[%clk 0:03:00.3]}
4. Nc3 {[%clk 0:02:59.5]} 4... d5 {[%clk 0:03:00.4]} 5. cxd5 {[%clk 0:02:59.5]}
5... exd5 {[%clk 0:03:01.3]} 6. Bg5 {[%clk 0:03:00]} 6... Be6 {[%clk 0:03:01.6]}
7. e3 {[%clk 0:02:58.5]} 7... Nbd7 {[%clk 0:03:01.4]} 8. Bd3 {[%clk 0:02:58.5]}
8... Bd6 {[%clk 0:03:01.2]} 9. O-O {[%clk 0:02:57.5]} 9... c6 {[%clk 0:03:01.2]}
10. h3 {[%clk 0:02:55.4]} 10... Qc7 {[%clk 0:03:01.1]} 11. Rc1 {[%clk
0:02:53.4]} 11... h6 {[%clk 0:02:58.8]} 12. Bxf6 {[%clk 0:02:48.9]} 12... Nxf6
{[%clk 0:02:59.7]} 13. e4 {[%clk 0:02:47.7]} 13... dxe4 {[%clk 0:02:58.6]} 14.
Nxe4 {[%clk 0:02:47.8]} 14... Nxe4 {[%clk 0:02:58]} 15. Bxe4 {[%clk 0:02:48.7]}
15... Bf4 {[%clk 0:02:38.7]} 16. Rc3 {[%clk 0:02:41.9]} 16... O-O {[%clk
0:02:31.7]} 17. g3 {[%clk 0:02:03.2]} 17... Bxg3 {[%clk 0:02:09.9]} 18. fxg3
{[%clk 0:02:03.1]} 18... Qxg3+ {[%clk 0:02:10.8]} 19. Kh1 {[%clk 0:02:03.3]}
19... Qxh3+ {[%clk 0:02:10.2]} 20. Nh2 {[%clk 0:02:03.1]} 20... Qh4 {[%clk
0:01:58.8]} 21. Qf3 {[%clk 0:01:48.5]} 21... f5 {[%clk 0:01:55.7]} 22. Bc2
{[%clk 0:01:43.7]} 22... Bd5 {[%clk 0:01:54.5]} 23. Bb3 {[%clk 0:01:43.5]} 23...
Rad8 {[%clk 0:01:54.1]} 24. Bxd5+ {[%clk 0:01:18.1]} 24... Rxd5 {[%clk 0:01:55]}
25. Rb3 {[%clk 0:00:55.7]} 25... Rf7 {[%clk 0:01:47.7]} 26. Qg2 {[%clk
0:00:42.1]} 26... Rxd4 {[%clk 0:01:38.2]} 27. Rh3 {[%clk 0:00:40.6]} 27... Qe4
{[%clk 0:01:36.6]} 28. Nf3 {[%clk 0:00:38.4]} 28... Rc4 {[%clk 0:01:33.3]} 29.
Rxh6 {[%clk 0:00:31.4]} 29... Qg4 {[%clk 0:00:56.3]} 30. Rg6 {[%clk 0:00:29.5]}
30... Qh5+ {[%clk 0:00:51.9]} 31. Kg1 {[%clk 0:00:28.6]} 31... Rg4 {[%clk
0:00:19.4]} 32. Rxg4 {[%clk 0:00:26.6]} 32... fxg4 {[%clk 0:00:19.1]} 33. Nd4
{[%clk 0:00:26.7]} 33... Qc5 {[%clk 0:00:18.1]} 34. Rxf7 {[%clk 0:00:25.9]}
34... Qxd4+ {[%clk 0:00:17.8]} 35. Rf2 {[%clk 0:00:25.4]} 35... c5 {[%clk
0:00:13.9]} 36. Qg3 {[%clk 0:00:23.1]} 36... c4 {[%clk 0:00:13.4]} 37. Kh2
{[%clk 0:00:22.9]} 37... b5 {[%clk 0:00:12.5]} 38. Re2 {[%clk 0:00:21.5]} 38...
b4 {[%clk 0:00:11.7]} 39. Qe5 {[%clk 0:00:18.2]} 39... Qd3 {[%clk 0:00:09.1]}
40. Qe8+ {[%clk 0:00:17.7]} 40... Kh7 {[%clk 0:00:08.6]} 41. Qh5+ {[%clk
0:00:18.3]} 1-0